fUST/lending_fUST_20240516
["ID","MTS","AMOUNT","RATE_DAILY","PERIOD"]
[327170699,1715872250920,-178.906362,0.00016712,2]
[327170700,1715872250930,-178.906362,0.00016712,2]
[327170701,1715872250939,-178.906362,0.00016712,2]
[327170702,1715872250954,-178.906362,0.00016712,2]
[327170703,1715872250964,-165.60349947,0.00016712,2]
[327170704,1715872250974,-3881.41650004,0.00016736,2]
[327170705,1715872250985,-416.7728428,0.00016754,2]
[327170706,1715872250996,-694.8,0.0001679,2]
[327170707,1715872251005,-159.7,0.0001679,2]
[327170708,1715872251014,-153.0,0.000168,2]
[327170709,1715872251024,-153.0,0.000168,2]
[327170710,1715872251034,-153.0,0.000168,2]
[327170711,1715872251044,-153.0,0.000168,2]
[327170712,1715872251053,-153.0,0.000168,2]
[327170713,1715872251063,-153.0,0.000168,2]
[327170714,1715872251072,-153.0,0.000168,2]
[327170715,1715872251083,-153.0,0.000168,2]
[327170716,1715872251092,-153.0,0.000168,2]
[327170717,1715872251101,-153.0,0.000168,2]
[327170718,1715872251110,-153.0,0.000168,2]
[327170719,1715872251120,-153.0,0.000168,2]
[327170720,1715872251129,-150.0,0.0001686,2]
[327170721,1715872251139,-150.168,0.0001686,2]
[327170722,1715872251149,-495.0,0.0001686,2]
[327170723,1715872251159,-20000.0,0.00016881,2]
[327170724,1715872251169,-151.0,0.00016881,2]
[327170725,1715872251178,-238.9097,0.00016901,2]
[327170726,1715872251188,-620.00000175,0.00016972,2]
[327170727,1715872251198,-1493.16172241,0.00016984,2]
[327170728,1715872251208,-284.55118921,0.00016984,2]
[327170729,1715872251217,-155.14556452,0.00016984,2]
[327170730,1715872251226,-154.83958662,0.00016984,2]
[327170731,1715872251236,-1393.28767748,0.00016984,2]
[327170732,1715872251246,-220.89820085,0.00016984,2]
[327170733,1715872251256,-269.88467761,0.00016984,2]
[327170734,1715872251265,-172.46384327,0.00016984,2]
[327170735,1715872251275,-703.82432062,0.00016985,2]
[327170736,1715872251284,-527.19,0.00016986,2]
[327170737,1715872251294,-500.0,0.00016986,2]
[327170738,1715872251302,-500.0,0.00016986,2]
[327170739,1715872251312,-500.0,0.00016986,2]
[327170740,1715872251446,-330.73476082,0.00016986,2]
[327170741,1715872251456,-500.0,0.00016986,2]
[327170742,1715872251465,-666.6,0.00016986,2]
[327170743,1715872251475,-500.0,0.00016986,2]
[327170744,1715872251485,-500.0,0.00016986,2]
[327170745,1715872251496,-500.0,0.00016986,2]
[327170746,1715872251505,-500.0,0.00016986,2]
[327170747,1715872251515,-518.33,0.00016986,2]
[327170748,1715872251524,-517.6,0.00016986,2]
[327170749,1715872251534,-500.0,0.00016986,2]
[327170750,1715872251543,-500.0,0.00016986,2]
[327170751,1715872251553,-500.0,0.00016986,2]
[327170752,1715872251563,-1288.28,0.00016986,2]
[327170753,1715872251572,-500.0,0.00016986,2]
[327170754,1715872251582,-557.54,0.00016986,2]
[327170755,1715872251592,-500.0,0.00016986,2]
[327170756,1715872251601,-500.0,0.00016986,2]
[327170757,1715872251610,-500.0,0.00016986,2]
[327170758,1715872251620,-688.34,0.00016986,2]
[327170759,1715872251629,-500.0,0.00016986,2]
[327170760,1715872251639,-500.0,0.00016986,2]
[327170761,1715872251648,-500.0,0.00016986,4]
[327170762,1715872251658,-500.0,0.00016986,2]
[327170763,1715872251667,-500.0,0.00016986,2]
[327170764,1715872251678,-500.0,0.00016986,2]
[327170765,1715872251687,-500.0,0.00016986,2]
[327170766,1715872251696,-500.0,0.00016986,2]
[327170767,1715872251706,-500.0,0.00016986,2]
[327170768,1715872251715,-530.1,0.00016986,2]
[327170769,1715872251724,-500.0,0.00016986,2]
[327170770,1715872251734,-500.0,0.00016986,2]
[327170771,1715872251743,-500.0,0.00016986,2]
[327170772,1715872251753,-500.0,0.00016986,2]
[327170773,1715872251762,-500.0,0.00016986,2]
[327170774,1715872251772,-500.0,0.00016986,2]
[327170775,1715872251781,-500.0,0.00016986,2]
[327170776,1715872251791,-500.0,0.00016986,2]
[327170777,1715872251800,-564.75421606,0.00016986,2]
[327170778,1715872251809,-500.0,0.00016986,2]
[327170779,1715872251819,-142.92526983,0.00016986,2]
[327170780,1715872252087,-328.03590854,0.00016438,2]
[327170781,1715872252098,-171.96409146,0.00016438,2]
[327170782,1715872252108,-500.0,0.00016438,2]
[327170783,1715872252117,-2448.87,0.00016438,2]
[327170784,1715872252127,-178.906362,0.00016712,2]
[327170785,1715872252136,-178.906362,0.00016712,2]
[327170786,1715872252146,-178.906362,0.00016712,2]
[327170787,1715872252156,-178.906362,0.00016712,2]
[327170788,1715872252165,-178.906362,0.00016712,2]
[327170789,1715872252174,-178.906356,0.00016712,2]
[327170790,1715872252184,-500.0,0.00016712,2]
[327170791,1715872252194,-357.07473017,0.00016986,2]
[327170792,1715872252203,-500.0,0.00016986,2]
[327170793,1715872252213,-500.0,0.00016986,2]
[327170794,1715872252222,-563.44,0.00016986,2]
[327170795,1715872252231,-500.0,0.00016986,2]
[327170796,1715872252241,-500.0,0.00016986,2]
[327170797,1715872252251,-717.98,0.00016986,2]
[327170798,1715872252260,-1447.74,0.00016986,2]
[327170799,1715872252268,-816.92,0.00016986,2]
[327170800,1715872252278,-589.36,0.00016986,2]
[327170801,1715872252287,-1033.12,0.00016986,2]
[327170802,1715872252296,-500.0,0.00016986,2]
[327170803,1715872252306,-500.0,0.00016986,2]
[327170804,1715872252316,-501.02,0.00016986,2]
[327170805,1715872252326,-500.0,0.00016986,2]
[327170806,1715872252337,-500.0,0.00016986,2]
[327170807,1715872252346,-500.0,0.00016986,2]
[327170808,1715872252356,-500.0,0.00016986,2]
[327170809,1715872252365,-1263.19,0.00016986,2]
[327170810,1715872252375,-1496.4,0.00016986,2]
[327170811,1715872252384,-500.0,0.00016986,2]
[327170812,1715872252394,-827.93,0.00016986,2]
[327170813,1715872252404,-500.0,0.00016986,2]
[327170814,1715872252413,-500.0,0.00016986,2]
[327170815,1715872252427,-500.0,0.00016986,2]
[327170816,1715872252445,-543.75,0.00016986,2]
[327170817,1715872252461,-500.0,0.00016986,2]
[327170818,1715872252473,-197.11378862,0.00016986,2]
[327170819,1715872252489,-500.0,0.00016986,2]
[327170820,1715872252505,-1223.42,0.00016986,2]
[327170821,1715872252520,-1265.32,0.00016986,2]
[327170822,1715872252536,-538.36,0.00016986,2]
[327170823,1715872252553,-1121.25,0.00016986,2]
[327170824,1715872252567,-500.0,0.00016986,2]
[327170825,1715872252582,-624.44,0.00016986,2]
[327170826,1715872252596,-802.47,0.00016986,2]
[327170827,1715872252611,-500.0,0.00016986,2]
[327170828,1715872252623,-759.69,0.00016986,2]
[327170829,1715872252636,-690.01,0.00016986,2]
[327170830,1715872252648,-500.0,0.00016986,2]
[327170831,1715872252663,-500.0,0.00016986,2]
[327170832,1715872252677,-607.26,0.00016986,2]
[327170833,1715872252693,-500.0,0.00016986,2]
[327170834,1715872252708,-500.0,0.00016986,2]
[327170835,1715872252719,-500.0,0.00016986,2]
[327170836,1715872252729,-1037.8,0.00016986,2]
[327170837,1715872252744,-1001.19,0.00016986,2]
[327170838,1715872252758,-1158.68,0.00016986,2]
[327170839,1715872252771,-500.0,0.00016986,2]
[327170840,1715872252783,-500.0,0.00016986,2]
[327170841,1715872252795,-500.0,0.00016986,2]
[327170842,1715872252809,-519.3,0.00016986,2]
[327170843,1715872252821,-500.0,0.00016986,2]
[327170844,1715872252832,-669.88,0.00016986,2]
[327170845,1715872252843,-500.0,0.00016986,2]
[327170846,1715872252857,-500.0,0.00016986,2]
[327170847,1715872252869,-500.0,0.00016986,2]
[327170848,1715872252881,-500.0,0.00016986,2]
[327170849,1715872252892,-714.32,0.00016986,2]
[327170850,1715872252904,-500.0,0.00016986,2]
[327170851,1715872252916,-1121.92,0.00016986,2]
[327170852,1715872252928,-946.76,0.00016986,2]
[327170853,1715872252940,-2040.45,0.00016986,2]
[327170854,1715872252957,-2085.2,0.00016986,2]
[327170855,1715872252969,-500.0,0.00016986,2]
[327170856,1715872252981,-500.0,0.00016986,2]
[327170857,1715872252995,-1283.57,0.00016986,2]
[327170858,1715872253007,-500.0,0.00016986,2]
[327170859,1715872253020,-638.00848164,0.00016986,2]
[327170860,1715872253035,-630.38,0.00016986,2]
[327170861,1715872253048,-500.0,0.00016986,2]
[327170862,1715872253061,-500.0,0.00016986,2]
[327170863,1715872253073,-529.58,0.00016986,2]
[327170864,1715872253086,-498.3726079,0.00016986,2]
[327170865,1715872253099,-500.07,0.00016986,2]
[327170866,1715872253111,-500.0,0.00016986,2]
[327170867,1715872253123,-500.0,0.00016986,2]
[327170868,1715872253135,-3932.1,0.00016986,2]
[327170869,1715872253148,-1516.16,0.00016986,2]
[327170870,1715872253160,-500.0,0.00016986,2]
[327170871,1715872253173,-500.0,0.00016986,2]
[327170872,1715872253185,-1338.06,0.00016986,2]
[327170873,1715872253196,-500.0,0.00016986,2]
[327170874,1715872253209,-500.0,0.00016986,2]
[327170875,1715872253222,-2424.93,0.00016986,2]
[327170876,1715872253233,-1000.0,0.00016986,2]
[327170877,1715872253248,-533.21123074,0.00016986,2]
[327170878,1715872253261,-1067.71,0.00016986,2]
[327170879,1715872253273,-500.0,0.00016986,2]
[327170880,1715872253286,-500.0,0.00016986,2]
[327170881,1715872253298,-1032.21,0.00016986,2]
[327170882,1715872253310,-500.0,0.00016986,2]
[327170883,1715872253323,-585.77,0.00016986,2]
[327170884,1715872253334,-995.02,0.00016986,2]
[327170885,1715872253347,-500.0,0.00016986,2]
[327170886,1715872253359,-500.0,0.00016986,2]
[327170887,1715872253372,-500.0,0.00016986,2]
[327170888,1715872253386,-772.64,0.00016986,2]
[327170889,1715872253398,-3521.27,0.00016986,2]
[327170890,1715872253410,-620.15,0.00016986,2]
[327170891,1715872253423,-1068.36,0.00016986,2]
[327170892,1715872253436,-500.0,0.00016986,2]
[327170893,1715872253448,-500.0,0.00016986,2]
[327170894,1715872253461,-500.0,0.00016986,2]
[327170895,1715872253473,-500.0,0.00016986,2]
[327170896,1715872253485,-500.0,0.00016986,2]
[327170897,1715872253499,-500.0,0.00016986,2]
[327170898,1715872253511,-238.411527,0.00016986,2]
[327170899,1715872253523,-4066.3,0.00016986,2]
[327170900,1715872253535,-610.64,0.00016986,2]
[327170901,1715872253547,-556.11,0.00016986,2]
[327170902,1715872253558,-500.0,0.00016986,2]
[327170903,1715872253568,-500.0,0.00016986,2]
[327170904,1715872253578,-1687.07,0.00016986,2]
[327170905,1715872253587,-505.80978048,0.00016986,2]
[327170906,1715872253596,-946.82,0.00016986,2]
[327170907,1715872253606,-544.46,0.00016986,2]
[327170908,1715872253615,-500.0,0.00016986,2]
[327170909,1715872253625,-508.93,0.00016986,2]
[327170910,1715872253635,-500.0,0.00016986,2]
[327170911,1715872253644,-500.0,0.00016986,2]
[327170912,1715872253654,-897.6,0.00016986,2]
[327170913,1715872253663,-500.0,0.00016986,2]
[327170914,1715872253672,-512.12,0.00016986,2]
[327170915,1715872253683,-575.53,0.00016986,2]
[327170916,1715872253692,-920.27,0.00016986,2]
[327170917,1715872253701,-500.0,0.00016986,2]
[327170918,1715872253711,-500.0,0.00016986,2]
[327170919,1715872253721,-2387.75,0.00016986,2]
[327170920,1715872253730,-500.0,0.00016986,2]
[327170921,1715872253739,-674.36,0.00016986,2]
[327170922,1715872253750,-2035.68,0.00016986,2]
[327170923,1715872253759,-383.99719421,0.00016986,2]
[327170924,1715872254000,-500.0,0.00016986,2]
[327170925,1715872254019,-5268.11,0.00016986,2]
[327170926,1715872254030,-500.0,0.00016986,2]
[327170927,1715872254040,-500.0,0.00016986,2]
[327170928,1715872254051,-500.0,0.00016986,2]
[327170929,1715872254061,-500.0,0.00016986,2]
[327170930,1715872254070,-2497.64,0.00016986,2]
[327170931,1715872254080,-1483.29,0.00016986,2]
[327170932,1715872254089,-4507.73,0.00016986,2]
[327170933,1715872254098,-500.0,0.00016986,2]
[327170934,1715872254107,-500.0,0.00016986,2]
[327170935,1715872254117,-500.0,0.00016986,2]
[327170936,1715872254126,-500.0,0.00016986,2]
[327170937,1715872254136,-500.0,0.00016986,2]
[327170938,1715872254145,-2877.84,0.00016986,2]
[327170939,1715872254154,-500.0,0.00016986,2]
[327170940,1715872254164,-604.63,0.00016986,2]
[327170941,1715872254173,-822.07,0.00016986,2]
[327170942,1715872254183,-939.83,0.00016986,2]
[327170943,1715872254192,-500.0,0.00016986,2]
[327170944,1715872254201,-723.53,0.00016986,2]
[327170945,1715872254211,-2385.71,0.00016986,2]
[327170946,1715872254220,-500.0,0.00016986,2]
[327170947,1715872254230,-724.1,0.00016986,2]
[327170948,1715872254239,-975.72,0.00016986,2]
[327170949,1715872254252,-500.0,0.00016986,2]
[327170950,1715872254261,-500.0,0.00016986,2]
[327170951,1715872254271,-500.0,0.00016986,2]
[327170952,1715872254280,-539.83,0.00016986,2]
[327170953,1715872254290,-500.0,0.00016986,2]
[327170954,1715872254299,-500.0,0.00016986,2]
[327170955,1715872254309,-1708.18,0.00016986,2]
[327170956,1715872254319,-500.0,0.00016986,2]
[327170957,1715872254328,-500.0,0.00016986,2]
[327170958,1715872254338,-2449.71,0.00016986,2]
[327170959,1715872254348,-500.0,0.00016986,2]
[327170960,1715872254357,-822.9,0.00016986,2]
[327170961,1715872254366,-500.0,0.00016986,2]
[327170962,1715872254375,-2653.83,0.00016986,2]
[327170963,1715872254385,-500.0,0.00016986,2]
[327170964,1715872254394,-500.0,0.00016986,2]
[327170965,1715872254403,-1058.32,0.00016986,2]
[327170966,1715872254413,-1024.37,0.00016986,2]
[327170967,1715872254422,-1324.34,0.00016986,2]
[327170968,1715872254433,-2296.84999,0.00016986,2]
[327170969,1715872254442,-4448.65,0.00016986,2]
[327170970,1715872254451,-500.0,0.00016986,2]
[327170971,1715872254461,-2296.849981,0.00016986,2]
[327170972,1715872254470,-500.0,0.00016986,2]
[327170973,1715872254480,-500.0,0.00016986,2]
[327170974,1715872254490,-536.86,0.00016986,2]
[327170975,1715872254503,-500.0,0.00016986,2]
[327170976,1715872254513,-500.0,0.00016986,2]
[327170977,1715872254523,-500.0,0.00016986,2]
[327170978,1715872254533,-63583.12,0.00016986,2]
[327170979,1715872254543,-1949.52,0.00016986,2]
[327170980,1715872254552,-579.15,0.00016986,2]
[327170981,1715872254561,-564.85,0.00016986,2]
[327170982,1715872254570,-500.0,0.00016986,2]
[327170983,1715872254580,-14970.55,0.00016986,2]
[327170984,1715872254589,-870.42,0.00016986,2]
[327170985,1715872254599,-500.0,0.00016986,2]
[327170986,1715872254608,-9348.96,0.00016986,2]
[327170987,1715872254618,-500.0,0.00016986,2]
[327170988,1715872254628,-5147.06,0.00016986,2]
[327170989,1715872254638,-1224.05,0.00016986,2]
[327170990,1715872254647,-500.0,0.00016986,2]
[327170991,1715872254656,-914.62,0.00016986,2]
[327170992,1715872254666,-500.0,0.00016986,2]
[327170993,1715872254675,-6827.55,0.00016986,2]
[327170994,1715872254684,-708.41,0.00016986,2]
[327170995,1715872254693,-500.0,0.00016986,2]
[327170996,1715872254703,-500.0,0.00016986,2]
[327170997,1715872254712,-500.0,0.00016986,2]
[327170998,1715872254721,-500.0,0.00016986,2]
[327170999,1715872254731,-500.0,0.00016986,2]
[327171000,1715872254740,-500.0,0.00016986,2]
[327171001,1715872254753,-1067.21,0.00016986,2]
[327171002,1715872254762,-4111.06,0.00016986,2]
[327171003,1715872254772,-2586.02,0.00016986,2]
[327171004,1715872254782,-500.0,0.00016986,2]
[327171005,1715872254792,-2534.47,0.00016986,2]
[327171006,1715872254801,-786.76,0.00016986,2]
[327171007,1715872254810,-2635.22,0.00016986,2]
[327171008,1715872254819,-500.0,0.00016986,2]
[327171009,1715872254829,-1588.79,0.00016986,2]
[327171010,1715872254839,-500.0,0.00016986,2]
[327171011,1715872254848,-515.88023418,0.00016986,2]
[327171012,1715872254858,-1933.06,0.00016986,2]
[327171013,1715872254867,-500.0,0.00016986,2]
[327171014,1715872254877,-500.0,0.00016986,2]
[327171015,1715872254886,-4812.12,0.00016986,2]
[327171016,1715872254895,-500.0,0.00016986,2]
[327171017,1715872254905,-500.0,0.00016986,2]
[327171018,1715872254914,-1328.77,0.00016986,2]
[327171019,1715872254923,-500.0,0.00016986,2]
[327171020,1715872254932,-1444.37,0.00016986,2]
[327171021,1715872254941,-500.0,0.00016986,2]
[327171022,1715872254956,-500.0,0.00016986,2]
[327171023,1715872254965,-500.0,0.00016986,2]
[327171024,1715872254975,-1518.39771057,0.00017,2]
[327171025,1715872254984,-3894.6242721,0.00017004,2]
[327171026,1715872254997,-188.35977046,0.00017004,2]
[327171027,1715872255006,-506.26060884,0.00017007,2]
[327171028,1715872255016,-694.8,0.00017007,2]
[327171029,1715872255025,-159.7,0.00017007,2]
[327171030,1715872255038,-168.54340823,0.0001701,2]
[327171031,1715872255047,-1506.2954672,0.0001701,2]
[327171032,1715872255057,-598.59,0.00017011,2]
[327171033,1715872255066,-598.59,0.00017011,2]
[327171034,1715872255075,-598.59,0.00017011,2]
[327171035,1715872255084,-598.59,0.00017012,2]
[327171036,1715872255093,-598.59,0.00017012,2]
[327171037,1715872255102,-598.59,0.00017012,2]
[327171038,1715872255111,-598.59,0.00017012,2]
[327171039,1715872255120,-598.59,0.00017012,2]
[327171040,1715872255129,-598.59,0.00017012,2]
[327171041,1715872255139,-598.59,0.00017013,2]
[327171042,1715872255148,-598.59,0.00017013,2]
[327171043,1715872255157,-598.59,0.00017013,2]
[327171044,1715872255167,-598.59,0.00017013,2]
[327171045,1715872255176,-598.59,0.00017013,2]
[327171046,1715872255185,-598.59,0.00017013,2]
[327171047,1715872255195,-598.59,0.00017013,2]
[327171048,1715872255204,-598.59,0.00017013,2]
[327171049,1715872255213,-598.59,0.00017013,2]
[327171050,1715872255222,-598.59,0.00017014,2]
[327171051,1715872255232,-598.59,0.00017014,2]
[327171052,1715872255242,-598.59,0.00017014,2]
[327171053,1715872255258,-598.59,0.00017014,2]
[327171054,1715872255266,-598.59,0.00017014,2]
[327171055,1715872255276,-598.59,0.00017014,2]
[327171056,1715872255286,-694.8,0.00017224,2]
[327171057,1715872255295,-159.7,0.00017224,2]
[327171058,1715872255304,-527.19,0.0001726,2]
[327171059,1715872255314,-500.0,0.0001726,2]
[327171060,1715872255323,-500.0,0.0001726,2]
[327171061,1715872255332,-500.0,0.0001726,2]
[327171062,1715872255341,-500.0,0.0001726,2]
[327171063,1715872255351,-666.6,0.0001726,2]
[327171064,1715872255360,-500.0,0.0001726,2]
[327171065,1715872255370,-500.0,0.0001726,2]
[327171066,1715872255379,-500.0,0.0001726,2]
[327171067,1715872255390,-500.0,0.0001726,2]
[327171068,1715872255399,-518.33,0.0001726,2]
[327171069,1715872255408,-517.6,0.0001726,2]
[327171070,1715872255418,-612.24309816,0.0001726,2]
[327171071,1715872255427,-500.0,0.0001726,2]
[327171072,1715872255437,-381.45538051,0.0001726,2]
[327171073,1715872255446,-1288.28,0.0001726,2]
[327171074,1715872255455,-500.0,0.0001726,2]
[327171075,1715872255465,-557.54,0.0001726,2]
[327171076,1715872255474,-175.34671522,0.0001726,2]
[327171077,1715872255484,-500.0,0.0001726,2]
[327171078,1715872255498,-500.0,0.0001726,2]
[327171079,1715872255507,-688.34,0.0001726,2]
[327171080,1715872255517,-500.0,0.0001726,2]
[327171081,1715872255526,-500.0,0.0001726,2]
[327171082,1715872255535,-500.0,0.0001726,4]
[327171083,1715872255545,-500.0,0.0001726,2]
[327171084,1715872255553,-500.0,0.0001726,2]
[327171085,1715872255562,-500.0,0.0001726,2]
[327171086,1715872255572,-500.0,0.0001726,2]
[327171087,1715872255582,-500.0,0.0001726,2]
[327171088,1715872255591,-500.0,0.0001726,2]
[327171089,1715872255601,-530.1,0.0001726,2]
[327171090,1715872255610,-577.72611458,0.0001726,2]
[327171091,1715872255619,-500.0,0.0001726,2]
[327171092,1715872255628,-500.0,0.0001726,2]
[327171093,1715872255637,-500.0,0.0001726,2]
[327171094,1715872255647,-500.0,0.0001726,2]
[327171095,1715872255656,-296.55395302,0.0001726,2]
[327171096,1715872255665,-500.0,0.0001726,2]
[327171097,1715872255674,-500.0,0.0001726,2]
[327171098,1715872255683,-500.0,0.0001726,2]
[327171099,1715872255692,-500.0,0.0001726,2]
[327171100,1715872255701,-500.0,0.0001726,2]
[327171101,1715872255711,-500.0,0.0001726,2]
[327171102,1715872255720,-563.44,0.0001726,2]
[327171103,1715872255729,-500.0,0.0001726,2]
[327171104,1715872255738,-500.0,0.0001726,2]
[327171105,1715872255750,-717.98,0.0001726,2]
[327171106,1715872255760,-1447.74,0.0001726,2]
[327171107,1715872255769,-816.92,0.0001726,2]
[327171108,1715872255779,-589.36,0.0001726,2]
[327171109,1715872255789,-1033.12,0.0001726,2]
[327171110,1715872255798,-500.0,0.0001726,2]
[327171111,1715872255807,-500.0,0.0001726,2]
[327171112,1715872255817,-501.02,0.0001726,2]
[327171113,1715872255826,-500.0,0.0001726,2]
[327171114,1715872255835,-500.0,0.0001726,2]
[327171115,1715872255844,-500.0,0.0001726,2]
[327171116,1715872255854,-500.0,0.0001726,2]
[327171117,1715872255863,-1263.19,0.0001726,2]
[327171118,1715872255872,-1496.4,0.0001726,2]
[327171119,1715872255881,-500.0,0.0001726,2]
[327171120,1715872255891,-827.93,0.0001726,2]
[327171121,1715872255900,-500.0,0.0001726,2]
[327171122,1715872255909,-500.0,0.0001726,2]
[327171123,1715872255918,-397.5,0.0001726,2]
[327171124,1715872255928,-543.75,0.0001726,2]
[327171125,1715872255938,-500.0,0.0001726,2]
[327171126,1715872255948,-500.0,0.0001726,2]
[327171127,1715872255960,-1223.42,0.0001726,2]
[327171128,1715872255969,-1265.32,0.0001726,2]
[327171129,1715872255978,-538.36,0.0001726,2]
[327171130,1715872255988,-1121.25,0.0001726,2]
[327171131,1715872256000,-500.0,0.0001726,2]
[327171132,1715872256010,-624.44,0.0001726,2]
[327171133,1715872256019,-802.47,0.0001726,2]
[327171134,1715872256029,-500.0,0.0001726,2]
[327171135,1715872256043,-759.69,0.0001726,2]
[327171136,1715872256053,-690.01,0.0001726,2]
[327171137,1715872256063,-500.0,0.0001726,2]
[327171138,1715872256072,-500.0,0.0001726,2]
[327171139,1715872256081,-607.26,0.0001726,2]
[327171140,1715872256091,-500.0,0.0001726,2]
[327171141,1715872256101,-500.0,0.0001726,2]
[327171142,1715872256110,-500.0,0.0001726,2]
[327171143,1715872256119,-1037.8,0.0001726,2]
[327171144,1715872256129,-1001.19,0.0001726,2]
[327171145,1715872256139,-1158.68,0.0001726,2]
[327171146,1715872256148,-500.0,0.0001726,2]
[327171147,1715872256158,-500.0,0.0001726,2]
[327171148,1715872256168,-500.0,0.0001726,2]
[327171149,1715872256177,-519.3,0.0001726,2]
[327171150,1715872256187,-500.0,0.0001726,2]
[327171151,1715872256196,-669.88,0.0001726,2]
[327171152,1715872256206,-500.0,0.0001726,2]
[327171153,1715872256216,-500.0,0.0001726,2]
[327171154,1715872256226,-500.0,0.0001726,2]
[327171155,1715872256236,-500.0,0.0001726,2]
[327171156,1715872256249,-714.32,0.0001726,2]
[327171157,1715872256258,-500.0,0.0001726,2]
[327171158,1715872256269,-1121.92,0.0001726,2]
[327171159,1715872256278,-946.76,0.0001726,2]
[327171160,1715872256287,-2040.45,0.0001726,2]
[327171161,1715872256297,-2085.2,0.0001726,2]
[327171162,1715872256307,-515.15707605,0.0001726,2]
[327171163,1715872256316,-500.0,0.0001726,2]
[327171164,1715872256325,-1283.57,0.0001726,2]
[327171165,1715872256334,-500.0,0.0001726,2]
[327171166,1715872256343,-630.38,0.0001726,2]
[327171167,1715872256352,-500.0,0.0001726,2]
[327171168,1715872256363,-500.0,0.0001726,2]
[327171169,1715872256372,-529.58,0.0001726,2]
[327171170,1715872256380,-500.07,0.0001726,2]
[327171171,1715872256390,-500.0,0.0001726,2]
[327171172,1715872256399,-500.0,0.0001726,2]
[327171173,1715872256408,-3932.1,0.0001726,2]
[327171174,1715872256418,-1516.16,0.0001726,2]
[327171175,1715872256427,-500.0,0.0001726,2]
[327171176,1715872256437,-500.0,0.0001726,2]
[327171177,1715872256447,-1338.06,0.0001726,2]
[327171178,1715872256456,-500.0,0.0001726,2]
[327171179,1715872256466,-500.0,0.0001726,2]
[327171180,1715872256475,-2424.93,0.0001726,2]
[327171181,1715872256484,-555.40892168,0.0001726,2]
[327171182,1715872256493,-1067.71,0.0001726,2]
[327171183,1715872256504,-500.0,0.0001726,2]
[327171184,1715872256513,-500.0,0.0001726,2]
[327171185,1715872256522,-1032.21,0.0001726,2]
[327171186,1715872256532,-500.0,0.0001726,2]
[327171187,1715872256541,-585.77,0.0001726,2]
[327171188,1715872256551,-995.02,0.0001726,2]
[327171189,1715872256561,-500.0,0.0001726,2]
[327171190,1715872256571,-500.0,0.0001726,2]
[327171191,1715872256580,-500.0,0.0001726,2]
[327171192,1715872256589,-772.64,0.0001726,2]
[327171193,1715872256599,-3521.27,0.0001726,2]
[327171194,1715872256607,-620.15,0.0001726,2]
[327171195,1715872256616,-1068.36,0.0001726,2]
[327171196,1715872256625,-500.0,0.0001726,2]
[327171197,1715872256635,-500.0,0.0001726,2]
[327171198,1715872256646,-500.0,0.0001726,2]